{"text_format":"3","workbook":"xlsx","n_sheets":1,"sheets":["Náklady na renovaci koupelny"],"not_rendered":{"defined_names":3},"read":"whole","date_system":"1900"}

{"sheet":"Náklady na renovaci koupelny","index":0,"n_rows":24,"n_cols":10,"rows_kept":24,"merged":[[1,1,2,3],[2,4,2,6],[2,7,2,9],[22,1,22,3],[22,4,22,6],[22,7,22,9],[23,1,23,3],[23,4,23,6],[23,7,23,9]]}
[null,"List pro výpočet nákladů na renovaci koupelny"]
[null,"POZNÁMKA: Sloupce tabulky s názvem Rozdíl ukazují, jestli skutečné částky překročily ty odhadované.  Červená čísla znamenají překročení odhadu (záporné částky), černá čísla znamenají úsporu oproti odhadu (kladné částky). "]
[{"$nulls":4},"Položková cena (Kč)",null,null,"Celková cena (Kč)"]
[null,"Oblast","Položky","Množství","Odhad","Skutečnost","Rozdíl","Odhad ","Skutečnost ","Rozdíl "]
[null,"Vana/sprcha","Vana, litinová, 150 cm, standardní",1,{"v":250,"d":"250.00 Kč"},{"$f":"RANDBETWEEN(E5+2,E5+20)","v":{"v":269,"d":"269.00 Kč"}},{"$f":"IFERROR(Náklady[[#This Row],[Odhad]]-Náklady[[#This Row],[Skutečnost]], \"\")","v":{"v":-19,"d":"-19.00 Kč"}},{"$f":"IFERROR(Náklady[[#This Row],[Množství]]*Náklady[[#This Row],[Odhad]], \"\")","v":{"v":250,"d":"250.00 Kč"}},{"$f":"IFERROR(Náklady[[#This Row],[Množství]]*Náklady[[#This Row],[Skutečnost]], \"\")","v":{"v":269,"d":"269.00 Kč"}},{"$f":"IFERROR(Náklady[[#This Row],[Odhad ]]-Náklady[[#This Row],[Skutečnost ]], \"\")","v":{"v":-19,"d":"-19.00 Kč"}}]
[null,"Vana/sprcha","Sprchové dveře, s panty, standardní",1,{"v":200,"d":"200.00 Kč"},{"v":206,"d":"206.00 Kč"},{"$f":"IFERROR(Náklady[[#This Row],[Odhad]]-Náklady[[#This Row],[Skutečnost]], \"\")","v":{"v":-6,"d":"-6.00 Kč"}},{"$f":"IFERROR(Náklady[[#This Row],[Množství]]*Náklady[[#This Row],[Odhad]], \"\")","v":{"v":200,"d":"200.00 Kč"}},{"$f":"IFERROR(Náklady[[#This Row],[Množství]]*Náklady[[#This Row],[Skutečnost]], \"\")","v":{"v":206,"d":"206.00 Kč"}},{"$f":"IFERROR(Náklady[[#This Row],[Odhad ]]-Náklady[[#This Row],[Skutečnost ]], \"\")","v":{"v":-6,"d":"-6.00 Kč"}}]
[null,"Vana/sprcha","Sprchová hlavice, standardní",1,{"v":50,"d":"50.00 Kč"},{"v":67,"d":"67.00 Kč"},{"$f":"IFERROR(Náklady[[#This Row],[Odhad]]-Náklady[[#This Row],[Skutečnost]], \"\")","v":{"v":-17,"d":"-17.00 Kč"}},{"$f":"IFERROR(Náklady[[#This Row],[Množství]]*Náklady[[#This Row],[Odhad]], \"\")","v":{"v":50,"d":"50.00 Kč"}},{"$f":"IFERROR(Náklady[[#This Row],[Množství]]*Náklady[[#This Row],[Skutečnost]], \"\")","v":{"v":67,"d":"67.00 Kč"}},{"$f":"IFERROR(Náklady[[#This Row],[Odhad ]]-Náklady[[#This Row],[Skutečnost ]], \"\")","v":{"v":-17,"d":"-17.00 Kč"}}]
[null,"Vana/sprcha","Obložení vany, standardní",1,{"v":200,"d":"200.00 Kč"},{"v":208,"d":"208.00 Kč"},{"$f":"IFERROR(Náklady[[#This Row],[Odhad]]-Náklady[[#This Row],[Skutečnost]], \"\")","v":{"v":-8,"d":"-8.00 Kč"}},{"$f":"IFERROR(Náklady[[#This Row],[Množství]]*Náklady[[#This Row],[Odhad]], \"\")","v":{"v":200,"d":"200.00 Kč"}},{"$f":"IFERROR(Náklady[[#This Row],[Množství]]*Náklady[[#This Row],[Skutečnost]], \"\")","v":{"v":208,"d":"208.00 Kč"}},{"$f":"IFERROR(Náklady[[#This Row],[Odhad ]]-Náklady[[#This Row],[Skutečnost ]], \"\")","v":{"v":-8,"d":"-8.00 Kč"}}]
[null,"Skříňky","Skříňka na léky 60 cm, de luxe",1,{"v":200,"d":"200.00 Kč"},{"v":214,"d":"214.00 Kč"},{"$f":"IFERROR(Náklady[[#This Row],[Odhad]]-Náklady[[#This Row],[Skutečnost]], \"\")","v":{"v":-14,"d":"-14.00 Kč"}},{"$f":"IFERROR(Náklady[[#This Row],[Množství]]*Náklady[[#This Row],[Odhad]], \"\")","v":{"v":200,"d":"200.00 Kč"}},{"$f":"IFERROR(Náklady[[#This Row],[Množství]]*Náklady[[#This Row],[Skutečnost]], \"\")","v":{"v":214,"d":"214.00 Kč"}},{"$f":"IFERROR(Náklady[[#This Row],[Odhad ]]-Náklady[[#This Row],[Skutečnost ]], \"\")","v":{"v":-14,"d":"-14.00 Kč"}}]
[null,"Skříňky","Toaletní stolek 75 cm, standardní",2,{"v":100,"d":"100.00 Kč"},{"v":108,"d":"108.00 Kč"},{"$f":"IFERROR(Náklady[[#This Row],[Odhad]]-Náklady[[#This Row],[Skutečnost]], \"\")","v":{"v":-8,"d":"-8.00 Kč"}},{"$f":"IFERROR(Náklady[[#This Row],[Množství]]*Náklady[[#This Row],[Odhad]], \"\")","v":{"v":200,"d":"200.00 Kč"}},{"$f":"IFERROR(Náklady[[#This Row],[Množství]]*Náklady[[#This Row],[Skutečnost]], \"\")","v":{"v":216,"d":"216.00 Kč"}},{"$f":"IFERROR(Náklady[[#This Row],[Odhad ]]-Náklady[[#This Row],[Skutečnost ]], \"\")","v":{"v":-16,"d":"-16.00 Kč"}}]
[null,"Umyvadlové desky","Keramické dlaždice, de luxe (množství v metrech)",5,{"v":22.5,"d":"22.50 Kč"},{"v":37,"d":"37.00 Kč"},{"$f":"IFERROR(Náklady[[#This Row],[Odhad]]-Náklady[[#This Row],[Skutečnost]], \"\")","v":{"v":-14.5,"d":"-14.50 Kč"}},{"$f":"IFERROR(Náklady[[#This Row],[Množství]]*Náklady[[#This Row],[Odhad]], \"\")","v":{"v":112.5,"d":"112.50 Kč"}},{"$f":"IFERROR(Náklady[[#This Row],[Množství]]*Náklady[[#This Row],[Skutečnost]], \"\")","v":{"v":185,"d":"185.00 Kč"}},{"$f":"IFERROR(Náklady[[#This Row],[Odhad ]]-Náklady[[#This Row],[Skutečnost ]], \"\")","v":{"v":-72.5,"d":"-72.50 Kč"}}]
[null,"Baterie","Baterie, vanová, standardní",1,{"v":90,"d":"90.00 Kč"},{"v":109,"d":"109.00 Kč"},{"$f":"IFERROR(Náklady[[#This Row],[Odhad]]-Náklady[[#This Row],[Skutečnost]], \"\")","v":{"v":-19,"d":"-19.00 Kč"}},{"$f":"IFERROR(Náklady[[#This Row],[Množství]]*Náklady[[#This Row],[Odhad]], \"\")","v":{"v":90,"d":"90.00 Kč"}},{"$f":"IFERROR(Náklady[[#This Row],[Množství]]*Náklady[[#This Row],[Skutečnost]], \"\")","v":{"v":109,"d":"109.00 Kč"}},{"$f":"IFERROR(Náklady[[#This Row],[Odhad ]]-Náklady[[#This Row],[Skutečnost ]], \"\")","v":{"v":-19,"d":"-19.00 Kč"}}]
[null,"Baterie","Baterie, sprchová, páková, standardní",1,{"v":115,"d":"115.00 Kč"},{"v":122,"d":"122.00 Kč"},{"$f":"IFERROR(Náklady[[#This Row],[Odhad]]-Náklady[[#This Row],[Skutečnost]], \"\")","v":{"v":-7,"d":"-7.00 Kč"}},{"$f":"IFERROR(Náklady[[#This Row],[Množství]]*Náklady[[#This Row],[Odhad]], \"\")","v":{"v":115,"d":"115.00 Kč"}},{"$f":"IFERROR(Náklady[[#This Row],[Množství]]*Náklady[[#This Row],[Skutečnost]], \"\")","v":{"v":122,"d":"122.00 Kč"}},{"$f":"IFERROR(Náklady[[#This Row],[Odhad ]]-Náklady[[#This Row],[Skutečnost ]], \"\")","v":{"v":-7,"d":"-7.00 Kč"}}]
[null,"Baterie","Umyvadlová baterie, standardní",1,{"v":95,"d":"95.00 Kč"},{"v":99,"d":"99.00 Kč"},{"$f":"IFERROR(Náklady[[#This Row],[Odhad]]-Náklady[[#This Row],[Skutečnost]], \"\")","v":{"v":-4,"d":"-4.00 Kč"}},{"$f":"IFERROR(Náklady[[#This Row],[Množství]]*Náklady[[#This Row],[Odhad]], \"\")","v":{"v":95,"d":"95.00 Kč"}},{"$f":"IFERROR(Náklady[[#This Row],[Množství]]*Náklady[[#This Row],[Skutečnost]], \"\")","v":{"v":99,"d":"99.00 Kč"}},{"$f":"IFERROR(Náklady[[#This Row],[Odhad ]]-Náklady[[#This Row],[Skutečnost ]], \"\")","v":{"v":-4,"d":"-4.00 Kč"}}]
[null,"Podlaha","Keramické dlaždice, standardní (množství v metrech čtverečních)",35,{"v":12,"d":"12.00 Kč"},{"v":31,"d":"31.00 Kč"},{"$f":"IFERROR(Náklady[[#This Row],[Odhad]]-Náklady[[#This Row],[Skutečnost]], \"\")","v":{"v":-19,"d":"-19.00 Kč"}},{"$f":"IFERROR(Náklady[[#This Row],[Množství]]*Náklady[[#This Row],[Odhad]], \"\")","v":{"v":420,"d":"420.00 Kč"}},{"$f":"IFERROR(Náklady[[#This Row],[Množství]]*Náklady[[#This Row],[Skutečnost]], \"\")","v":{"v":1085,"d":"1,085.00 Kč"}},{"$f":"IFERROR(Náklady[[#This Row],[Odhad ]]-Náklady[[#This Row],[Skutečnost ]], \"\")","v":{"v":-665,"d":"-665.00 Kč"}}]
[null,"Kovové doplňky","Tyčový držák na ručníky, standardní",2,{"v":15,"d":"15.00 Kč"},{"v":29,"d":"29.00 Kč"},{"$f":"IFERROR(Náklady[[#This Row],[Odhad]]-Náklady[[#This Row],[Skutečnost]], \"\")","v":{"v":-14,"d":"-14.00 Kč"}},{"$f":"IFERROR(Náklady[[#This Row],[Množství]]*Náklady[[#This Row],[Odhad]], \"\")","v":{"v":30,"d":"30.00 Kč"}},{"$f":"IFERROR(Náklady[[#This Row],[Množství]]*Náklady[[#This Row],[Skutečnost]], \"\")","v":{"v":58,"d":"58.00 Kč"}},{"$f":"IFERROR(Náklady[[#This Row],[Odhad ]]-Náklady[[#This Row],[Skutečnost ]], \"\")","v":{"v":-28,"d":"-28.00 Kč"}}]
[null,"Kovové doplňky","Držák na toaletní papír",1,{"v":10,"d":"10.00 Kč"},{"v":29,"d":"29.00 Kč"},{"$f":"IFERROR(Náklady[[#This Row],[Odhad]]-Náklady[[#This Row],[Skutečnost]], \"\")","v":{"v":-19,"d":"-19.00 Kč"}},{"$f":"IFERROR(Náklady[[#This Row],[Množství]]*Náklady[[#This Row],[Odhad]], \"\")","v":{"v":10,"d":"10.00 Kč"}},{"$f":"IFERROR(Náklady[[#This Row],[Množství]]*Náklady[[#This Row],[Skutečnost]], \"\")","v":{"v":29,"d":"29.00 Kč"}},{"$f":"IFERROR(Náklady[[#This Row],[Odhad ]]-Náklady[[#This Row],[Skutečnost ]], \"\")","v":{"v":-19,"d":"-19.00 Kč"}}]
[null,"Osvětlení","Zápustná světla, standardní",4,{"v":25,"d":"25.00 Kč"},{"v":37,"d":"37.00 Kč"},{"$f":"IFERROR(Náklady[[#This Row],[Odhad]]-Náklady[[#This Row],[Skutečnost]], \"\")","v":{"v":-12,"d":"-12.00 Kč"}},{"$f":"IFERROR(Náklady[[#This Row],[Množství]]*Náklady[[#This Row],[Odhad]], \"\")","v":{"v":100,"d":"100.00 Kč"}},{"$f":"IFERROR(Náklady[[#This Row],[Množství]]*Náklady[[#This Row],[Skutečnost]], \"\")","v":{"v":148,"d":"148.00 Kč"}},{"$f":"IFERROR(Náklady[[#This Row],[Odhad ]]-Náklady[[#This Row],[Skutečnost ]], \"\")","v":{"v":-48,"d":"-48.00 Kč"}}]
[null,"Umyvadla","Koupelnové umyvadlo, standardní",2,{"v":60,"d":"60.00 Kč"},{"v":73,"d":"73.00 Kč"},{"$f":"IFERROR(Náklady[[#This Row],[Odhad]]-Náklady[[#This Row],[Skutečnost]], \"\")","v":{"v":-13,"d":"-13.00 Kč"}},{"$f":"IFERROR(Náklady[[#This Row],[Množství]]*Náklady[[#This Row],[Odhad]], \"\")","v":{"v":120,"d":"120.00 Kč"}},{"$f":"IFERROR(Náklady[[#This Row],[Množství]]*Náklady[[#This Row],[Skutečnost]], \"\")","v":{"v":146,"d":"146.00 Kč"}},{"$f":"IFERROR(Náklady[[#This Row],[Odhad ]]-Náklady[[#This Row],[Skutečnost ]], \"\")","v":{"v":-26,"d":"-26.00 Kč"}}]
[null,"Ostatní",null,1,{"v":20,"d":"20.00 Kč"},{"v":39,"d":"39.00 Kč"},{"$f":"IFERROR(Náklady[[#This Row],[Odhad]]-Náklady[[#This Row],[Skutečnost]], \"\")","v":{"v":-19,"d":"-19.00 Kč"}},{"$f":"IFERROR(Náklady[[#This Row],[Množství]]*Náklady[[#This Row],[Odhad]], \"\")","v":{"v":20,"d":"20.00 Kč"}},{"$f":"IFERROR(Náklady[[#This Row],[Množství]]*Náklady[[#This Row],[Skutečnost]], \"\")","v":{"v":39,"d":"39.00 Kč"}},{"$f":"IFERROR(Náklady[[#This Row],[Odhad ]]-Náklady[[#This Row],[Skutečnost ]], \"\")","v":{"v":-19,"d":"-19.00 Kč"}}]
[null,"Mezisoučet",null,null,{"$f":"SUBTOTAL(109,Náklady[Odhad])","v":{"v":1464.5,"d":"1,464.50 Kč"}},{"$f":"SUBTOTAL(109,Náklady[Skutečnost])","v":{"v":1677,"d":"1,677.00 Kč"}},{"$f":"SUBTOTAL(109,Náklady[Rozdíl])","v":{"v":-212.5,"d":"-212.50 Kč"}},{"$f":"SUBTOTAL(109,Náklady[[Odhad ]])","v":{"v":2212.5,"d":"2,212.50 Kč"}},{"$f":"SUBTOTAL(109,Náklady[[Skutečnost ]])","v":{"v":3200,"d":"3,200.00 Kč"}},{"$f":"SUBTOTAL(109,Náklady[[Rozdíl ]])","v":{"v":-987.5,"d":"-987.50 Kč"}}]
[]
[null,"Neočekávané náklady – 30 % navíc oproti odhadu",null,null,{"$f":"IFERROR(Náklady[[#Totals],[Odhad]]*0.3, \"\")","v":{"v":439.34999999999997,"d":"439.35 Kč"}},null,null,{"$f":"IFERROR(Náklady[[#Totals],[Odhad ]]*0.3, \"\")","v":{"v":663.75,"d":"663.75 Kč"}}]
[null,"Celkové náklady",null,null,{"$f":"IFERROR(SUM(E21:E21), \"\")","v":{"v":1464.5,"d":"1,464.50 Kč"}},null,null,{"$f":"IFERROR(SUM(Náklady[[#Totals],[Odhad ]],Nadsazení), \"\")","v":{"v":2876.25,"d":"2,876.25 Kč"}}]